bitfinex-derivatives/quotes_SOLF0:USTF0_20241010
["timestamp","ask_amount","ask_price","bid_price","bid_amount"]
[1728536799751,10.98,139.66,139.63,3.5837]
[1728536804468,14.5632,139.66,139.63,3.5837]
[1728536805163,10.98,139.66,139.63,3.5837]
[1728536807476,14.5631,139.66,139.63,3.5837]
[1728536807866,3.5831,139.66,139.63,14.5637]
[1728536808460,10.98,139.64,139.57,12.3891]
[1728536808669,10.98,139.59,139.57,1.4091]
[1728536808865,14.565,139.59,139.57,1.4091]
[1728536809063,10.98,139.59,139.57,1.4091]
[1728536809380,5.4,139.66,139.56,6.50448]
[1728536809381,10.98,139.58,139.56,0.12518]
[1728536809772,14.5654,139.58,139.56,0.12518]
[1728536811473,3.5854,139.58,139.56,0.12518]
[1728536811670,14.5654,139.58,139.56,0.12518]
[1728536812273,3.5854,139.57,139.56,0.12518]
[1728536813376,14.5652,139.58,139.56,0.12518]
[1728536815082,10.98,139.58,139.56,0.12518]
[1728536815580,14.5653,139.58,139.56,0.12518]
[1728536816278,14.5654,139.57,139.56,0.12518]
[1728536818184,3.5854,139.57,139.56,0.12518]
[1728536818484,14.5654,139.57,139.56,0.12518]
[1728536818979,3.5853,139.58,139.56,0.12518]
[1728536819182,10.98,139.57,139.56,0.12518]
[1728536819985,14.565,139.59,139.56,0.12518]
[1728536820483,3.5852,139.58,139.56,0.12518]
[1728536823689,14.565,139.59,139.56,0.12518]
[1728536826790,9.01198796,139.61,139.56,0.12518]
[1728536826791,3.5847,139.6,139.56,0.12518]
[1728536826990,14.5647,139.6,139.56,0.12518]
[1728536827298,14.5647,139.6,139.56,3.71078]
[1728536827690,10.98,139.59,139.56,3.71078]
[1728536833603,10.98,139.59,139.56,0.12518]
[1728536833903,10.98,139.59,139.57,3.5854]
[1728536837703,10.98,139.6,139.57,3.5854]
[1728536841996,3.5845,139.61,139.57,3.5854]
[1728536842235,10.98,139.6,139.57,3.5854]
[1728536842808,14.5647,139.6,139.57,3.5854]
[1728536843103,10.98,139.6,139.57,3.5854]
[1728536844202,8.9484468,139.63,139.56,0.12518]
[1728536844203,10.98,139.58,139.56,0.12518]
[1728536844400,10.98,139.57,139.56,0.12518]
[1728536845306,10.98,139.58,139.56,0.12518]
[1728536845508,14.5653,139.58,139.56,0.12518]
[1728536849313,3.5853,139.58,139.56,0.12518]
[1728536858538,3.5842,139.62,139.58,3.585]
[1728536858823,3.5842,139.62,139.58,10.98]
[1728536859823,3.5835,139.65,139.6,14.5644]
[1728536860018,19.9435,139.65,139.6,10.98]
[1728536860420,19.9435,139.65,139.61,3.5843]
[1728536860618,16.36,139.65,139.61,3.5843]
[1728536860822,3.5836,139.64,139.6,10.98]
[1728536861622,3.5836,139.64,139.6,14.5646]
[1728536861927,14.5636,139.64,139.6,14.5646]
[1728536869038,14.5636,139.64,139.6,3.5846]
[1728536869334,14.5636,139.64,139.6,14.5646]
[1728536875141,10.98,139.64,139.59,10.98]
[1728536875344,10.98,139.64,139.59,19.8048]
[1728536875837,3.5839,139.63,139.59,19.8048]
[1728536879344,3.5839,139.63,139.6,10.98]
[1728536880045,3.5845,139.61,139.58,6.3666]
[1728536880341,10.98,139.62,139.58,6.3666]
[1728536880545,14.5643,139.62,139.58,6.3666]
[1728536880846,3.5843,139.62,139.58,17.3466]
[1728536883749,5.24,139.64,139.59,10.98]
[1728536884054,5.24,139.64,139.61,10.98]
[1728536884749,8.8239,139.64,139.61,10.98]
[1728536886750,3.5839,139.63,139.61,10.98]
[1728536887649,3.5839,139.63,139.6,10.98]
[1728536905963,16.22,139.64,139.59,3.5848]
[1728536906262,3.5842,139.62,139.59,3.5848]
[1728536908461,3.5842,139.62,139.59,14.5648]
[1728536910359,3.584,139.63,139.59,14.5648]
[1728536918373,3.584,139.63,139.59,10.98]
[1728536918576,3.584,139.63,139.6,3.5846]
[1728536940599,5.08,139.65,139.6,3.5846]
[1728536940824,3.5837,139.64,139.61,3.5843]
[1728536943505,8.6635,139.65,139.61,3.5843]
[1728536946509,8.6635,139.65,139.6,10.98]
[1728536946700,8.6635,139.65,139.61,3.5843]
[1728536951003,14.5641,139.62,139.58,11.4465]
[1728536951208,14.5641,139.62,139.58,7.8615]
[1728536951609,14.5641,139.62,139.58,11.4464]
[1728536951809,3.5841,139.62,139.58,7.8615]
[1728536952309,14.564,139.63,139.59,3.5849]
[1728536952520,14.564,139.63,139.59,14.5649]
[1728536955817,3.584,139.63,139.59,14.5649]
[1728536969925,3.584,139.63,139.59,3.5849]
[1728536970124,3.584,139.63,139.59,14.5649]
[1728536974634,10.98,139.64,139.59,10.98]
[1728536974818,14.5637,139.64,139.6,3.5845]
[1728536975927,10.98,139.64,139.61,3.5843]
[1728536989734,19.6435,139.65,139.61,3.5843]
[1728536994641,14.5637,139.64,139.61,3.5843]
[1728536995032,14.5637,139.64,139.6,10.98]
[1728536995330,14.5637,139.64,139.6,14.5645]
[1728536997929,10.98,139.64,139.56,0.12518]
[1728536998136,3.5859,139.56,139.5,3.5871]
[1728536998431,10.98,139.56,139.5,10.98]
[1728536998638,3.586,139.55,139.5,17.324]
[1728536999340,5.04,139.57,139.51,10.98]
[1728536999639,16.02,139.57,139.51,10.98]
[1728536999842,16.02,139.57,139.53,10.98]
[1728537000175,3.5857,139.56,139.53,10.98]
[1728537000642,16.02,139.57,139.53,10.98]
[1728537000643,3.5854,139.57,139.53,10.98]
[1728537001931,3.5854,139.57,139.52,3.5867]
[1728537002138,10.98,139.56,139.52,10.98]
[1728537003237,3.586,139.55,139.52,10.98]
[1728537005049,14.5659,139.56,139.52,14.5667]
[1728537008447,10.98,139.56,139.52,14.5667]
[1728537008647,3.586,139.55,139.52,14.5667]
[1728537010138,3.586,139.55,139.52,10.98]
[1728537012055,10.98,139.56,139.51,3.5869]
[1728537012410,3.5862,139.54,139.51,14.5669]
[1728537012949,10.98,139.56,139.5,12.7565]
[1728537013147,3.5863,139.54,139.51,10.98]
[1728537015056,3.5863,139.54,139.51,14.567]
[1728537015257,3.5863,139.54,139.5,9.1694]
[1728537015461,3.5863,139.54,139.51,10.98]
[1728537016961,80.4406389,139.58,139.51,10.98]
[1728537017258,10.98,139.56,139.51,10.98]
[1728537017558,10.98,139.56,139.53,10.98]
[1728537018553,3.5861,139.55,139.53,10.98]
[1728537019659,3.5861,139.55,139.51,3.5868]
[1728537019850,3.5861,139.55,139.52,10.98]
[1728537023465,14.5658,139.56,139.52,14.5667]
[1728537024959,14.5658,139.56,139.5,4.1294]
[1728537024960,3.5858,139.56,139.54,10.98]
[1728537025157,19.6456,139.57,139.54,10.98]
[1728537025357,8.6656,139.57,139.54,10.98]
[1728537026955,8.6656,139.57,139.53,3.5863]
[1728537027165,19.6456,139.57,139.53,14.5663]
[1728537027467,3.5857,139.56,139.53,14.5663]
[1728537027862,3.5857,139.56,139.53,10.98]
[1728537032057,3.586,139.55,139.52,10.98]
[1728537032261,16.06,139.57,139.52,10.98]
[1728537032464,16.06,139.57,139.53,10.98]
[1728537033472,3.5859,139.56,139.53,10.98]
[1728537034168,14.5659,139.56,139.52,14.5667]
[1728537037469,3.586,139.55,139.52,14.5667]
[1728537038173,3.586,139.55,139.52,3.5867]
[1728537038368,3.5862,139.54,139.51,14.5669]
[1728537052190,10.98,139.56,139.51,14.5669]
[1728537052191,3.5861,139.55,139.52,3.5867]
[1728537053242,3.586,139.55,139.53,3.5864]
[1728537053520,3.586,139.55,139.51,10.98]
[1728537054189,3.586,139.55,139.5,9.2094]
[1728537054488,3.586,139.55,139.52,3.5866]
[1728537056830,10.98,139.56,139.5,9.2094]
[1728537056982,10.98,139.56,139.51,14.5669]
[1728537057381,3.5861,139.55,139.52,3.5867]
[1728537063097,10.98,139.56,139.5,9.2094]
[1728537063396,10.98,139.56,139.5,20.1894]
[1728537064483,3.5863,139.54,139.5,23.7764]
[1728537066893,3.5863,139.54,139.51,3.5869]
[1728537073596,10.98,139.56,139.5,1.3643]
[1728537073795,10.98,139.56,139.5,12.3443]
[1728537074195,10.98,139.56,139.5,15.9314]
[1728537076198,3.5864,139.54,139.5,15.9314]
[1728537076900,3.5864,139.54,139.51,3.5869]
[1728537077695,3.5864,139.54,139.5,12.3443]
[1728537078002,3.5864,139.54,139.5,15.9314]
[1728537083652,3.5864,139.54,139.51,3.5868]
[1728537105319,5.04,139.55,139.5,1.3643]
[1728537105521,3.5865,139.53,139.5,15.9313]
[1728537115268,8.6261,139.55,139.52,3.5867]
[1728537115423,5.04,139.55,139.51,10.98]
[1728537115831,3.5862,139.54,139.51,14.5668]
[1728537118228,5.04,139.55,139.51,10.98]
[1728537118432,75.4006389,139.58,139.54,10.98]
[1728537118641,86.3806389,139.58,139.54,10.98]
[1728537119119,89.9659389,139.58,139.54,14.566]
[1728537119627,86.3806389,139.58,139.54,10.98]
[1728537119829,3.5857,139.56,139.54,10.98]
[1728537120018,3.5857,139.56,139.53,14.5663]
[1728537120626,3.5857,139.56,139.53,10.98]
[1728537122236,75.4006389,139.58,139.51,4.9045]
[1728537122237,3.5862,139.54,139.51,4.9045]
[1728537122441,14.5662,139.54,139.51,4.9045]
[1728537125306,3.5866,139.53,139.5,15.9315]
[1728537126434,14.5663,139.54,139.51,10.98]
[1728537133243,14.5663,139.54,139.51,14.567]
[1728537138051,3.5854,139.58,139.55,3.5858]
[1728537138356,0.12502,139.61,139.57,10.98]
[1728537138357,3.50849415,139.6,139.57,10.98]
[1728537138764,3.5848,139.6,139.57,10.98]
[1728537139566,3.73537598,139.61,139.57,10.98]
[1728537139843,3.70952,139.61,139.58,10.98]
[1728537141950,14.68952,139.61,139.57,10.98]
[1728537142550,14.68952,139.61,139.57,14.5653]
[1728537150263,14.68952,139.61,139.56,2.818]
[1728537150264,3.70952,139.61,139.58,10.98]
[1728537150470,14.68952,139.61,139.58,14.565]
[1728537152062,14.68952,139.61,139.58,3.585]
[1728537152267,14.68952,139.61,139.57,14.5653]
[1728537152770,11.10502,139.61,139.58,3.585]
[1728537153870,14.68962,139.61,139.58,3.585]
[1728537154269,14.68962,139.61,139.57,10.98]
[1728537154470,10.98,139.6,139.57,14.5653]
[1728537156862,14.68962,139.61,139.57,14.5653]
[1728537163281,14.68962,139.61,139.57,10.98]
[1728537163575,14.68962,139.61,139.58,3.5851]
[1728537171781,3.70962,139.61,139.58,3.5851]
[1728537172081,3.70962,139.61,139.58,14.5651]
[1728537172778,0.12502,139.61,139.58,14.5651]
[1728537177086,0.12502,139.61,139.59,3.5849]
[1728537183580,0.12502,139.61,139.59,14.5649]
[1728537184485,0.12502,139.61,139.6,14.5647]
[1728537185583,0.12502,139.61,139.58,3.5851]
[1728537185782,0.12502,139.61,139.57,17.3493]
[1728537185981,0.12502,139.61,139.59,10.98]
[1728537186529,0.12502,139.61,139.59,3.5849]
[1728537188689,0.12502,139.61,139.6,3.5847]
[1728537189290,0.12502,139.61,139.59,3.5848]
[1728537197381,0.12502,139.61,139.58,10.98]
[1728537197428,0.12502,139.61,139.6,3.5847]
[1728537197593,0.12502,139.61,139.6,19.6047]
[1728537200397,0.12502,139.61,139.6,8.6247]
[1728537207607,0.12502,139.61,139.6,19.6047]
[1728537214814,0.12502,139.61,139.6,14.5647]
[1728537215171,0.12502,139.61,139.6,19.6047]
[1728537215613,79.07686214,139.67,139.6,16.02]
[1728537215614,75.49396214,139.67,139.6,16.02]
[1728537215801,75.49396214,139.67,139.63,10.98]
[1728537216005,3.5832,139.66,139.63,19.6037]
[1728537216207,86.47396214,139.67,139.63,16.02]
[1728537217414,90.05696214,139.67,139.64,3.5836]
[1728537218730,75.49396214,139.67,139.64,3.5836]
[1728537219225,79.07686214,139.67,139.64,3.5836]
[1728537231740,3.5832,139.66,139.63,16.02]
[1728537233441,3.5832,139.66,139.63,19.6038]
[1728537237835,79.07696214,139.67,139.64,14.5636]
[1728537244742,3.70802,139.67,139.64,14.5636]
[1728537249146,3.70802,139.67,139.65,10.98]
[1728537256961,14.68802,139.67,139.64,3.5836]
[1728537257266,14.68802,139.67,139.64,8.6236]
[1728537259466,79.10864849,139.67,139.61,2.7099]
[1728537259659,10.98,139.64,139.61,7.7299]
[1728537259858,14.5638,139.64,139.61,11.3143]
[1728537260454,14.5638,139.64,139.61,6.2943]
[1728537260764,14.5638,139.64,139.61,11.3143]
[1728537261667,10.98,139.64,139.61,2.7099]
[1728537261870,3.5841,139.62,139.6,5.02]
[1728537262068,3.5841,139.62,139.59,14.5648]
[1728537262069,3.5841,139.62,139.59,19.5848]
[1728537263470,3.584,139.63,139.59,19.5848]
[1728537265566,3.584,139.63,139.6,3.5846]
[1728537265760,3.584,139.63,139.6,14.5646]
[1728537267969,3.584,139.63,139.6,3.5846]
[1728537270009,3.5843,139.62,139.59,8.6049]
[1728537271365,3.5843,139.62,139.59,19.5849]
[1728537271568,14.5643,139.62,139.59,8.6049]
[1728537271870,10.98,139.63,139.59,5.02]
[1728537273472,3.5842,139.62,139.59,8.6048]
[1728537275564,3.5842,139.62,139.59,3.5848]
[1728537279174,3.5842,139.62,139.6,3.5847]
[1728537279568,3.584,139.63,139.6,3.5847]
[1728537280055,10.98,139.64,139.6,3.5846]
[1728537280172,3.584,139.63,139.6,3.5846]
[1728537282371,14.564,139.63,139.6,3.5846]
[1728537289482,14.5637,139.64,139.61,3.5843]
[1728537300093,10.98,139.64,139.59,10.98]
[1728537300296,3.5839,139.63,139.6,3.5846]
[1728537300498,10.98,139.63,139.58,5.04]
[1728537300906,3.5843,139.62,139.59,3.5849]
[1728537301596,3.5843,139.62,139.58,5.04]
[1728537301803,3.5843,139.62,139.6,3.5846]
[1728537305596,10.98,139.63,139.6,3.5846]
[1728537305801,14.564,139.63,139.6,3.5846]
[1728537307818,3.584,139.63,139.6,3.5844]
[1728537308612,10.98,139.64,139.59,10.98]
[1728537308804,14.5637,139.64,139.61,3.5844]
[1728537310811,14.5637,139.64,139.59,10.98]
[1728537311006,14.5637,139.64,139.6,3.5845]
[1728537315413,10.98,139.63,139.6,8.6045]
[1728537315911,3.5837,139.64,139.6,19.5845]
[1728537316112,14.5637,139.64,139.6,19.5845]
[1728537318618,14.5637,139.64,139.61,3.5844]
[1728537323322,3.584,139.63,139.6,8.6046]
[1728537329225,3.5842,139.62,139.6,5.02]
[1728537330118,3.584,139.63,139.6,8.6046]
[1728537344028,3.5842,139.62,139.6,8.6046]
[1728537346228,3.5844,139.61,139.58,3.585]
[1728537346486,10.98,139.6,139.56,2.8261]
[1728537346691,10.98,139.59,139.56,7.8461]
[1728537347424,14.5651,139.59,139.56,11.4318]
[1728537347620,10.98,139.58,139.53,1.3134]
[1728537347835,26.6748,139.64,139.55,5.14502]
[1728537348026,10.98,139.58,139.55,8.73082]
[1728537348926,14.5652,139.58,139.55,8.73082]
[1728537351236,3.5852,139.58,139.55,8.73082]
[1728537358739,10.98,139.6,139.55,5.14502]
[1728537358935,14.55909963,139.6,139.55,5.14502]
[1728537359137,3.5851,139.59,139.56,3.5856]
[1728537359841,3.5851,139.59,139.55,19.71082]
[1728537360541,14.5651,139.59,139.55,19.71082]
[1728537364541,14.5651,139.59,139.55,16.12502]
[1728537364840,14.5651,139.59,139.56,3.5857]
[1728537376744,14.5651,139.59,139.55,19.71082]
[1728537378637,3.5853,139.58,139.55,8.73082]
[1728537379540,10.98,139.59,139.55,0.12502]
[1728537379950,3.6174689,139.6,139.55,0.12502]
[1728537379951,14.5657,139.56,139.55,0.12502]
[1728537413373,3.5857,139.56,139.55,0.12502]
[1728537413583,14.5657,139.56,139.55,0.12502]
[1728537422882,3.5857,139.56,139.55,0.12502]
[1728537424085,14.5655,139.57,139.55,0.12502]
[1728537425089,3.5853,139.58,139.55,3.71092]
[1728537425382,14.5653,139.58,139.55,3.71092]
[1728537426290,3.53324227,139.6,139.55,0.12502]
[1728537426490,14.565,139.59,139.56,3.5855]
[1728537426688,3.585,139.59,139.56,3.5855]
[1728537426888,14.565,139.59,139.56,3.5855]
[1728537427489,3.5852,139.58,139.55,3.71092]
[1728537434497,14.5652,139.58,139.55,3.71092]
[1728537437397,10.98,139.58,139.55,0.12502]
[1728537437602,3.5857,139.57,139.55,0.12502]
[1728537438097,10.98,139.58,139.55,0.12502]
[1728537438301,3.5857,139.56,139.55,0.12502]
[1728537438605,10.98,139.58,139.55,0.12502]
[1728537438901,3.5856,139.57,139.55,0.12502]
[1728537447204,10.98,139.58,139.55,0.12502]
[1728537447411,3.53324227,139.6,139.55,0.12502]
[1728537447412,3.5857,139.56,139.55,0.12502]
[1728537460121,14.5657,139.56,139.55,0.12502]
[1728537460822,3.5857,139.56,139.55,0.12502]
[1728537461112,14.5657,139.56,139.55,0.12502]
[1728537462018,3.5857,139.56,139.55,0.12502]
[1728537465016,8.64131107,139.58,139.55,0.12502]
[1728537465312,3.5855,139.57,139.55,0.12502]
[1728537466420,70.21202199,139.58,139.55,0.12502]
[1728537466621,70.21202199,139.58,139.55,3.71092]
[1728537466622,73.79742199,139.58,139.55,3.71092]
[1728537471319,84.77742199,139.58,139.55,3.71092]
[1728537471516,81.19202199,139.58,139.55,0.12502]
[1728537471824,3.5854,139.57,139.55,0.12502]
[1728537475810,70.21202199,139.58,139.55,0.12502]
[1728537476514,73.79732199,139.58,139.55,3.71082]
[1728537480821,10.98,139.57,139.55,0.12502]
[1728537481031,14.5655,139.57,139.55,0.12502]
[1728537482216,10.98,139.57,139.55,0.12502]
[1728537483537,14.5656,139.57,139.55,0.12502]
[1728537483716,10.98,139.57,139.55,0.12502]
[1728537485326,10.98,139.57,139.55,3.71092]
[1728537485824,14.5654,139.57,139.55,3.71092]
[1728537487722,14.5654,139.57,139.55,0.12502]
[1728537493927,3.5857,139.56,139.55,0.12502]
[1728537502038,10.98,139.57,139.55,0.12502]
[1728537502039,3.5855,139.57,139.55,0.12502]
[1728537505145,81.19202199,139.58,139.55,0.12502]
[1728537505348,84.77732199,139.58,139.55,3.71092]
[1728537507448,81.19202199,139.58,139.55,3.71092]
[1728537507646,3.5854,139.57,139.55,3.71092]
[1728537507951,3.5854,139.57,139.55,0.12502]
[1728537518459,81.19202199,139.58,139.55,0.12502]
[1728537519967,3.5856,139.57,139.55,0.12502]
[1728537532678,3.5857,139.56,139.55,0.12502]
[1728537532883,81.19202199,139.58,139.55,0.12502]
[1728537534485,3.5855,139.57,139.55,0.12502]
[1728537544607,81.19202199,139.58,139.55,3.71092]
[1728537544906,84.77732199,139.58,139.55,3.71092]
[1728537555501,3.5857,139.56,139.55,0.12502]
[1728537557003,14.5657,139.56,139.55,0.12502]
[1728537557902,3.5855,139.57,139.55,0.12502]
[1728537563308,84.77722199,139.58,139.55,3.71092]
[1728537568402,73.79722199,139.58,139.55,3.71092]
[1728537569215,73.79722199,139.58,139.56,3.5857]
[1728537572310,70.21202199,139.58,139.56,3.5857]
[1728537572510,70.21202199,139.58,139.57,3.5854]
[1728537572911,10.98,139.6,139.57,3.5854]
[1728537574216,14.5648,139.6,139.57,3.5854]
[1728537574422,3.5848,139.6,139.57,3.5854]
[1728537574617,5.0,139.63,139.56,19.5656]
[1728537574618,10.98,139.59,139.56,19.5656]
[1728537574815,14.565,139.59,139.56,19.5656]
[1728537575118,10.98,139.59,139.56,19.5656]
[1728537576771,3.5849,139.6,139.57,3.5853]
[1728537576913,3.5844,139.61,139.57,10.98]
[1728537578211,10.98,139.62,139.57,10.98]
[1728537578431,14.5644,139.62,139.57,10.98]
[1728537578924,14.5644,139.62,139.58,3.5849]
[1728537579322,3.5844,139.61,139.58,3.5849]
[1728537582327,14.5649,139.6,139.57,3.5854]
[1728537586119,14.5649,139.6,139.57,14.5654]
[1728537594430,10.98,139.6,139.58,3.5851]
[1728537594628,3.5844,139.61,139.58,3.5851]
[1728537603840,73.81225294,139.62,139.56,5.0]
[1728537604036,10.98,139.59,139.55,2.86792]
[1728537604255,10.98,139.59,139.55,7.86792]
[1728537604743,3.5853,139.58,139.55,11.45362]
[1728537606235,3.5853,139.58,139.55,6.45362]
[1728537630950,10.98,139.58,139.55,2.86792]
[1728537631157,14.5657,139.56,139.55,0.12502]
[1728537632698,3.5872,139.5,139.49,0.12502]
[1728537632858,10.98,139.51,139.49,0.12502]
[1728537633376,14.5669,139.52,139.49,0.12502]
[1728537633756,3.5861,139.55,139.51,3.5868]
[1728537634062,10.98,139.55,139.51,3.5868]
[1728537634264,14.5664,139.54,139.5,3.5872]
[1728537634762,14.5667,139.53,139.49,8.71232]
[1728537634952,14.5667,139.53,139.49,5.12502]
[1728537636260,3.5867,139.53,139.49,16.10502]
[1728537636460,3.5867,139.53,139.5,3.5872]
[1728537636729,14.5663,139.54,139.5,3.5872]
[1728537640666,3.5863,139.54,139.5,3.5872]
[1728537640862,14.5663,139.54,139.5,3.5872]
[1728537642179,14.5663,139.54,139.51,3.5869]
[1728537644481,3.5863,139.54,139.51,3.5869]
[1728537646482,8.61132998,139.57,139.52,10.98]
[1728537646679,19.59132998,139.57,139.52,10.98]
[1728537647429,3.5859,139.56,139.52,10.98]
[1728537647884,3.5859,139.56,139.52,14.5666]
[1728537648284,3.5859,139.56,139.53,10.98]
[1728537648685,3.5859,139.56,139.53,14.5663]
[1728537649285,14.5659,139.56,139.53,14.5663]
[1728537649789,14.5659,139.56,139.52,10.98]
[1728537649988,14.5659,139.56,139.52,14.5666]
[1728537650187,14.5659,139.56,139.52,3.5866]
[1728537655091,3.586,139.55,139.52,3.5866]
[1728537664103,5.0,139.58,139.52,10.98]
[1728537664299,15.98,139.58,139.53,10.98]
[1728537665102,3.5856,139.57,139.54,3.586]
[1728537666095,3.5856,139.57,139.53,3.5863]
[1728537666096,3.5859,139.56,139.53,3.5863]
[1728537666297,10.98,139.57,139.53,3.5863]
[1728537666604,3.5857,139.56,139.53,3.5863]
[1728537666797,10.98,139.57,139.52,15.9267]
[1728537667206,10.98,139.57,139.52,12.3401]
[1728537667397,3.586,139.55,139.53,3.5864]
[1728537669605,3.5858,139.56,139.53,3.5864]
[1728537672109,5.0,139.58,139.52,1.3601]
[1728537672307,15.98,139.58,139.52,1.3601]
[1728537673306,3.5857,139.56,139.52,1.3601]
[1728537673909,15.98,139.58,139.52,1.3601]
[1728537674213,3.5856,139.57,139.54,3.5862]
[1728537675308,3.5854,139.58,139.54,3.5862]
[1728537675608,10.98,139.58,139.54,3.5862]
[1728537676008,10.98,139.58,139.52,12.3401]
[1728537676377,3.5858,139.56,139.53,3.5863]
[1728537676602,10.98,139.57,139.52,1.3601]
[1728537676808,3.5864,139.54,139.52,1.3601]
[1728537677306,10.98,139.55,139.52,1.3601]
[1728537677606,10.98,139.54,139.49,66.7024986]
[1728537678306,3.5865,139.53,139.5,3.587]
[1728537678603,10.98,139.54,139.49,66.7024986]
[1728537678801,14.5663,139.54,139.51,3.587]
[1728537681304,3.5863,139.54,139.51,3.587]
[1728537684010,14.566,139.55,139.52,3.5867]
[1728537685707,3.5862,139.54,139.51,3.5869]
[1728537686596,3.5862,139.54,139.5,12.2932]
[1728537686597,10.98,139.55,139.5,12.2932]
[1728537686807,14.566,139.55,139.52,3.5867]
[1728537687213,3.586,139.55,139.52,3.5867]
[1728537699914,10.98,139.56,139.5,12.2932]
[1728537700208,10.98,139.56,139.53,3.5863]
[1728537700209,14.5657,139.56,139.53,3.5863]
[1728537702515,3.5857,139.56,139.53,3.5863]
[1728537707723,10.98,139.57,139.54,3.586]
[1728537707724,3.5856,139.57,139.54,3.586]
[1728537707914,14.5656,139.57,139.54,3.586]
[1728537710818,3.5856,139.57,139.54,3.586]
[1728537718724,3.586,139.55,139.52,4.9806]
[1728537721646,3.586,139.55,139.52,15.9606]
[1728537722228,3.586,139.55,139.53,3.5864]
[1728537723028,3.5858,139.56,139.53,3.5864]
[1728537723224,14.5658,139.56,139.53,3.5864]
[1728537730135,14.5664,139.54,139.51,8.5668]
[1728537731832,3.5864,139.54,139.51,8.5668]
[1728537734744,14.5661,139.55,139.52,3.5867]
[1728537743251,3.5861,139.55,139.52,3.5867]
[1728537748251,10.98,139.56,139.51,4.98]
[1728537748447,3.5864,139.54,139.51,8.567]
[1728537751152,3.586,139.55,139.52,3.5867]
[1728537753151,3.5858,139.56,139.53,3.5863]
[1728537776766,10.98,139.57,139.51,15.96]
[1728537776969,3.5856,139.57,139.54,3.586]
[1728537777174,14.5656,139.57,139.54,3.586]
[1728537781074,3.5857,139.56,139.54,3.586]
[1728537781981,10.98,139.57,139.54,3.586]
[1728537783080,14.5656,139.57,139.54,3.586]
[1728537786075,10.98,139.57,139.53,10.98]
[1728537786278,3.5852,139.58,139.55,14.5658]
[1728537786581,64.65909176,139.59,139.55,10.98]
[1728537787379,68.24399176,139.59,139.56,3.5855]
[1728537788877,68.24399176,139.59,139.55,14.5658]
[1728537790182,3.5853,139.58,139.55,3.5859]
[1728537793984,3.5853,139.58,139.55,14.5659]
[1728537799593,68.24409176,139.59,139.56,3.5857]
[1728537808010,64.65909176,139.59,139.55,10.98]
[1728537808208,64.65909176,139.59,139.55,14.5658]
[1728537808209,3.5852,139.58,139.55,14.5658]
[1728537812811,3.5857,139.56,139.54,4.914]
[1728537813009,10.98,139.58,139.54,1.3278]
[1728537813911,75.63909176,139.59,139.54,1.3278]
[1728537814415,3.5855,139.57,139.54,4.914]
[1728537821829,3.5855,139.57,139.55,3.5859]
[1728537825825,3.5853,139.58,139.55,3.5859]
[1728537826228,64.65909176,139.59,139.56,14.5656]
[1728537827526,68.24419176,139.59,139.56,14.5656]
[1728537836436,64.65909176,139.59,139.57,14.5654]